bitfinex-derivatives/quotes_ETHF0:USTF0_20250410
["timestamp","ask_amount","ask_price","bid_price","bid_amount"]
[1744299453820,4.53606,1506.6,1506.5,40.8]
[1744299454022,3.2078,1506.6,1506.5,40.8]
[1744299454429,4.53606,1506.6,1506.5,40.8]
[1744299454634,14.47256,1506.6,1506.5,40.8]
[1744299455128,18.1443,1506.6,1506.4,0.00996612]
[1744299455323,1.32835,1506.5,1506.4,0.00996612]
[1744299455520,11.26485,1506.5,1506.4,0.00996612]
[1744299455726,16.26485,1506.5,1506.4,6.12e-06]
[1744299456131,3.32164,1506.2,1505.4,5.1161]
[1744299456334,3.2078,1505.7,1505.5,40.8]
[1744299456531,3.2078,1505.9,1505.7,1.32902]
[1744299456727,3.2078,1506.1,1506.0,1.32874]
[1744299456928,3.2078,1506.1,1505.7,3.32248]
[1744299456929,3.2078,1506.1,1505.9,101.239]
[1744299457123,3.2078,1506.5,1506.0,12.98600586]
[1744299457324,0.00996612,1506.2,1506.1,1.3287]
[1744299457631,3.2078,1506.7,1506.2,3.32153]
[1744299457828,3.2078,1506.7,1506.3,9.6684]
[1744299458030,3.2078,1506.5,1506.4,1.32835]
[1744299458337,3.2078,1506.5,1506.4,9.6684]
[1744299458741,4.53615,1506.5,1506.0,10.01406612]
[1744299458930,3.2078,1506.3,1506.2,1.32861]
[1744299459128,3.2078,1506.3,1506.0,0.00996612]
[1744299459329,4.5365,1506.1,1506.0,0.00996612]
[1744299459535,3.2078,1506.1,1505.4,9.6684]
[1744299459744,3.2078,1505.6,1505.5,1.32923]
[1744299460035,10.223,1506.0,1505.9,1.32885]
[1744299460036,3.2078,1506.0,1505.9,1.32885]
[1744299460239,3.2078,1506.2,1505.7,3.32264]
[1744299460427,3.2078,1506.0,1505.8,10.0759]
[1744299460840,4.53666,1506.0,1505.6,4.9995]
[1744299461030,3.2078,1505.8,1505.7,1.32901]
[1744299461232,3.2078,1505.4,1504.3,3.2078]
[1744299461438,9.98,1505.9,1504.3,3.2078]
[1744299461439,3.2078,1504.9,1504.3,10.0759]
[1744299461637,3.2078,1504.9,1504.4,41.4648]
[1744299461840,4.53791,1504.5,1504.4,40.8]
[1744299462033,4.53791,1504.5,1504.4,41.46481]
[1744299462236,3.2078,1504.5,1504.4,41.46481]
[1744299462434,4.53791,1504.5,1504.4,40.8]
[1744299462631,13.4115,1504.5,1504.4,40.8]
[1744299462837,14.74161,1504.5,1504.4,40.8]
[1744299463341,13.4115,1504.5,1503.8,3.2078]
[1744299463531,13.4115,1504.5,1503.9,9.9214]
[1744299463736,5.17736612,1505.0,1504.0,56.02505554]
[1744299463737,3.2078,1504.6,1504.0,56.02505554]
[1744299463937,3.2078,1504.6,1504.5,1.33011]
[1744299464136,12.7856,1504.8,1504.6,1.32998]
[1744299464435,12.7856,1504.8,1504.1,3.32617]
[1744299464636,3.2078,1504.5,1504.1,0.66481]
[1744299464846,3.2078,1504.5,1504.2,1.33032]
[1744299465037,3.2078,1504.5,1504.1,1.33042]
[1744299465239,3.2078,1504.3,1504.1,1.33043]
[1744299465445,3.2078,1504.3,1504.0,40.8]
[1744299465743,4.53811,1504.3,1504.0,40.8]
[1744299465949,10.051,1504.2,1504.0,42.13051]
[1744299466152,10.051,1504.2,1504.0,40.8]
[1744299466347,11.38142,1504.2,1504.0,40.8]
[1744299466644,10.051,1504.2,1504.0,40.8]
[1744299466847,3.2078,1504.1,1504.0,40.8]
[1744299467142,3.2078,1504.1,1504.0,42.13055]
[1744299467348,3.2078,1504.1,1504.0,40.8]
[1744299468149,10.06096612,1504.2,1504.0,41.46481]
[1744299468450,0.00996612,1504.2,1504.1,1.33047]
[1744299468635,0.00996612,1504.2,1504.1,4.53827]
[1744299468844,10.051,1504.7,1504.2,3.32585]
[1744299469042,10.051,1504.7,1504.6,1.33002]
[1744299469344,3.2078,1505.0,1504.5,104.6572]
[1744299469551,4.53749,1505.0,1504.7,1.32989]
[1744299469757,10.0411,1504.9,1504.8,1.32985]
[1744299470044,3.2078,1505.6,1505.1,3.32381]
[1744299470245,16.57155,1505.7,1505.2,142.132]
[1744299470443,4.5372,1505.3,1505.2,142.132]
[1744299470643,3.2078,1505.3,1505.2,142.132]
[1744299470845,4.5372,1505.3,1505.2,142.132]
[1744299471046,3.2078,1505.3,1505.2,142.132]
[1744299471247,5.0,1505.3,1505.2,40.8]
[1744299471550,3.2078,1505.3,1505.2,40.8]
[1744299471737,3.21776612,1505.5,1505.2,40.8]
[1744299471943,3.2078,1505.3,1505.2,40.8]
[1744299472246,1.33926612,1505.5,1505.2,40.8]
[1744299472247,9.8018,1505.4,1505.3,1.3294]
[1744299472554,3.32794,1503.3,1501.8,3.2078]
[1744299472743,1.33152,1503.0,1502.3,0.6656]
[1744299472940,3.2078,1503.1,1502.3,41.4656]
[1744299473142,3.2078,1502.9,1502.5,110.59438878]
[1744299473355,3.2078,1503.1,1502.6,9.7224]
[1744299473557,3.2078,1503.3,1502.6,9.7224]
[1744299473757,3.2078,1503.3,1502.7,7.54098931]
[1744299473963,3.2078,1503.7,1503.2,3.32816]
[1744299474163,3.2078,1503.8,1503.3,116.1545]
[1744299474459,0.00996612,1503.6,1503.4,9.7224]
[1744299474955,0.00996612,1503.6,1502.7,1.9973]
[1744299474956,1.33124,1503.3,1502.7,1.9973]
[1744299475161,3.2078,1503.2,1502.8,12.48449]
[1744299475351,3.2078,1503.2,1502.8,10.4873]
[1744299475856,3.2078,1503.4,1502.9,8.6308288]
[1744299476052,3.21776612,1503.6,1502.9,15.68179666]
[1744299476255,13.4719,1503.4,1503.0,1.33139]
[1744299476454,3.2078,1503.3,1502.9,1.33152]
[1744299476659,3.2078,1503.1,1502.9,10.4873]
[1744299476860,10.2641,1503.4,1502.9,10.4873]
[1744299476861,3.2078,1503.3,1502.9,10.4873]
[1744299477056,3.2078,1503.1,1503.0,8.57193111]
[1744299477261,3.2078,1503.1,1502.7,101.378]
[1744299477565,3.2078,1502.9,1502.7,101.378]
[1744299477865,3.2078,1502.9,1502.7,113.19699]
[1744299478054,3.2078,1503.1,1502.9,1.33144]
[1744299478259,3.2078,1503.1,1502.7,102.70963]
[1744299478454,3.2078,1502.8,1502.7,102.70963]
[1744299478655,3.2078,1503.1,1502.9,1.33153]
[1744299479163,3.2078,1503.1,1502.7,101.378]
[1744299479365,3.2078,1502.9,1502.8,1.33158]
[1744299479760,3.2078,1503.2,1502.8,8.2078]
[1744299480059,3.2078,1503.2,1502.3,45.8025]
[1744299480060,3.2078,1501.9,1499.8,26.41365628]
[1744299480251,3.2078,1500.9,1499.8,125.75264673]
[1744299480458,3.2078,1500.4,1500.3,40.8]
[1744299480754,3.2078,1501.0,1500.4,8.58332001]
[1744299480963,3.2078,1501.0,1500.5,10.1528]
[1744299481157,10.1594,1501.8,1500.5,10.1528]
[1744299481158,3.2078,1501.2,1500.6,101.431]
[1744299481364,3.2078,1501.2,1500.7,40.8]
[1744299481559,3.2078,1501.1,1500.7,40.8]
[1744299481759,3.2078,1501.2,1500.7,51.20216787]
[1744299481961,0.00996612,1501.1,1500.8,3.2078]
[1744299482258,3.2078,1502.3,1501.8,1.33247]
[1744299482457,3.2078,1502.3,1501.9,101.431]
[1744299482662,3.2078,1502.1,1501.8,101.431]
[1744299482864,3.2078,1502.2,1501.6,101.431]
[1744299483066,2.17780006,1502.5,1502.0,1.33232]
[1744299483259,3.2078,1502.8,1502.4,3.2078]
[1744299483560,0.13305834,1503.1,1502.1,9.7457]
[1744299483561,0.13305834,1503.1,1502.7,3.2078]
[1744299483759,3.2078,1503.4,1502.8,9.09216]
[1744299483959,0.00996612,1503.1,1503.0,4.53924]
[1744299484161,5.1769,1504.4,1503.0,44.0078]
[1744299484162,3.2078,1504.1,1503.0,44.0078]
[1744299484360,12.7146,1504.3,1503.7,1.33078]
[1744299484564,3.2078,1504.1,1503.8,102.80472]
[1744299484762,3.2078,1504.5,1503.9,3.2078]
[1744299484961,7.91728917,1504.7,1504.4,3.2078]
[1744299485166,7.91728917,1504.7,1504.2,1.33036]
[1744299485367,3.21776612,1504.4,1504.0,3.21776612]
[1744299485568,0.00996612,1504.4,1504.3,8.52788383]
[1744299485865,3.21776612,1504.4,1504.0,0.00996612]
[1744299486260,3.2078,1504.3,1504.1,40.8]
[1744299486466,3.21776612,1504.4,1504.1,40.8]
[1744299486867,3.2078,1504.2,1504.1,40.8]
[1744299487062,0.00996612,1504.4,1504.1,40.8]
[1744299487261,4.8001,1505.1,1504.2,18.70802964]
[1744299487262,9.6199,1505.0,1504.2,18.70802964]
[1744299487463,3.2078,1505.1,1504.3,104.6528]
[1744299487665,3.2078,1504.9,1504.5,3.2078]
[1744299487865,3.2078,1505.1,1504.8,1.32984]
[1744299488076,9.6199,1505.5,1505.0,3.2078]
[1744299488363,3.2078,1505.2,1504.2,5.0714]
[1744299488568,3.2078,1505.0,1504.9,0.00996612]
[1744299488768,4.53747,1505.0,1504.9,0.00996612]
[1744299488963,3.2078,1505.0,1504.9,0.00996612]
[1744299489265,9.6199,1505.1,1504.9,0.00996612]
[1744299489465,4.53747,1505.0,1504.9,0.00996612]
[1744299489772,4.53747,1505.0,1504.3,44.0078]
[1744299489773,1.33015,1504.5,1504.3,40.8]
[1744299489968,7.12372229,1505.0,1504.3,40.8]
[1744299489969,4.538,1504.4,1504.3,40.8]
[1744299490174,3.2078,1504.4,1503.7,101.426]
[1744299490365,3.2078,1504.1,1503.7,101.426]
[1744299490566,1.33042,1504.2,1503.7,102.75678]
[1744299490766,0.00996612,1504.1,1503.9,1.33064]
[1744299491070,1.33073,1503.8,1503.7,101.43596612]
[1744299491264,1.33091,1503.6,1503.5,40.8]
[1744299491473,4.53871,1503.6,1503.5,40.8]
[1744299491671,1.33076,1503.8,1503.5,40.8]
[1744299491875,1.33086,1503.7,1503.5,40.8]
[1744299492079,3.2078,1503.8,1503.5,40.8]
[1744299492366,3.2078,1503.6,1503.2,10.4426]
[1744299492574,1.33149,1503.0,1502.3,3.2078]
[1744299492771,3.2078,1503.1,1502.4,10.4426]
[1744299492965,3.2078,1502.9,1502.4,25.87489334]
[1744299493170,3.2078,1502.9,1502.8,1.33162]
[1744299493371,11.2363,1503.2,1502.8,102.76657]
[1744299493575,10.1394,1504.0,1502.8,101.435]
[1744299493576,3.2078,1503.0,1502.8,101.435]
[1744299493770,3.2078,1503.2,1502.8,101.435]
[1744299493970,3.21776612,1503.2,1502.8,101.44496612]
[1744299494173,3.2078,1502.9,1502.8,101.44496612]
[1744299494369,4.53933,1502.9,1502.8,0.00996612]
[1744299494878,3.2078,1502.9,1502.8,0.00996612]
[1744299495078,0.00996612,1503.2,1502.8,0.00996612]
[1744299495079,3.21776612,1503.2,1502.8,106.44496612]
[1744299495375,1.33268,1501.6,1501.5,20.32835873]
[1744299495576,3.2078,1501.6,1500.7,3.2078]
[1744299495773,3.2078,1501.6,1501.4,13.308]
[1744299496074,3.2078,1501.7,1501.0,0.6664]
[1744299496375,3.2078,1502.3,1501.4,3.2078]
[1744299496580,3.2078,1502.1,1502.0,13.308]
[1744299496871,1.33277,1501.5,1501.4,21.94480576]
[1744299497071,4.54057,1501.5,1501.4,8.63680576]
[1744299497268,3.2078,1501.5,1501.4,55.90268854]
[1744299497473,3.2078,1501.7,1501.4,55.90268854]
[1744299497667,1.33272,1501.6,1501.5,1.79468854]
[1744299497876,3.2078,1501.5,1501.4,40.8]
[1744299498075,4.54057,1501.5,1501.4,40.8]
[1744299498282,9.54057,1501.5,1501.4,40.8]
[1744299498782,3.33215,1501.4,1500.7,0.6664]
[1744299498980,3.2078,1501.1,1501.0,13.308]
[1744299499172,3.2078,1501.3,1501.0,5.0]
[1744299499483,1.33281,1501.5,1501.4,13.308]
[1744299499675,0.00996612,1501.3,1500.9,101.497]
[1744299499975,3.2078,1501.6,1501.3,1.33294]
[1744299500179,9.76,1501.7,1501.3,1.33294]
[1744299500180,3.2078,1501.7,1501.6,13.308]
[1744299500484,3.2078,1501.7,1501.4,42.59468854]
[1744299500781,3.2078,1501.7,1500.6,3.8742]
[1744299500782,1.33301,1501.3,1500.6,3.8742]
[1744299500970,1.33336,1500.9,1500.7,1.79468854]
[1744299501177,3.2078,1500.9,1500.8,40.8]
[1744299501475,3.2078,1500.9,1500.8,55.91265466]
[1744299501674,3.2078,1500.9,1500.8,42.60465466]
[1744299501869,0.00996612,1501.1,1500.8,55.91265466]
[1744299502076,0.00996612,1501.1,1500.9,1.79468854]
[1744299502077,3.2078,1501.0,1500.9,1.79468854]
[1744299502278,1.3333,1500.9,1500.8,40.80996612]
[1744299502780,15.8323,1500.9,1500.8,6.12e-06]
[1744299503176,15.8323,1500.9,1500.1,3.2078]
[1744299503177,3.33348,1500.8,1500.1,3.2078]
[1744299503475,3.2078,1500.6,1500.2,1.79468854]
[1744299503668,0.00996612,1501.1,1500.5,3.33415]
[1744299503869,0.00996612,1501.1,1500.4,3.2078]
[1744299503870,0.00996612,1501.1,1501.0,14.64121]
[1744299504078,3.2078,1501.8,1501.0,101.525]
[1744299504276,12.7068,1502.3,1501.7,16.5158]
[1744299504481,12.7068,1502.3,1502.1,13.308]
[1744299504775,7.91728917,1502.4,1502.2,13.308]
[1744299504985,7.91728917,1502.4,1502.0,101.57]
[1744299504986,7.91728917,1502.4,1502.3,15.10268854]
[1744299505175,7.91728917,1502.4,1502.3,13.308]
[1744299505369,4.70948917,1502.4,1502.3,21.43474854]
[1744299505570,9.42395549,1502.8,1502.7,1.3317]
[1744299505769,2.4417355,1502.8,1502.7,17.8475]
[1744299505975,9.9321,1503.6,1503.2,1.33121]
[1744299506185,9.9321,1503.6,1502.7,127.23692765]
[1744299506186,9.9321,1503.6,1503.5,13.308]
[1744299506775,3.2078,1503.6,1503.5,121.20895]
[1744299506977,3.21776612,1503.7,1503.5,114.878]
[1744299507175,0.00996612,1503.7,1503.6,13.308]
[1744299507675,3.2078,1504.2,1504.1,1.33047]
[1744299507875,3.2078,1504.4,1504.3,13.308]
[1744299508075,3.2078,1504.4,1504.1,114.843]
[1744299508281,3.2078,1504.4,1504.1,101.535]
[1744299508478,9.704,1504.3,1504.1,101.535]
[1744299508681,3.2078,1504.4,1504.3,13.308]
[1744299508885,3.21776612,1504.4,1504.2,40.8]
[1744299509176,3.21776612,1504.4,1504.3,13.308]
[1744299509773,3.21776612,1504.4,1504.1,101.535]
[1744299509974,3.2078,1504.2,1504.1,101.535]
[1744299510178,3.2078,1504.2,1504.1,40.8]
[1744299510479,8.2078,1504.2,1504.0,0.00996612]
[1744299510670,11.0346,1504.1,1504.0,0.00996612]
[1744299510872,9.704,1504.1,1504.0,40.80996612]
[1744299511076,0.00996612,1504.4,1504.0,45.80996612]
[1744299511282,14.77324316,1505.0,1504.5,13.308]
[1744299511580,11.56544316,1505.0,1504.9,14.63789]
[1744299512084,27.77890471,1506.1,1504.9,14.63789]
[1744299512085,3.2078,1505.8,1504.9,5.0]
[1744299512275,3.2078,1505.6,1505.4,13.308]
[1744299512471,3.2078,1505.7,1505.4,101.497]
[1744299512676,3.2078,1506.0,1505.8,13.308]
[1744299512879,1.32886,1506.1,1505.9,13.308]
[1744299513081,4.53661,1506.2,1505.9,13.308]
[1744299513283,0.00996612,1506.1,1505.9,13.308]
[1744299513580,0.00996612,1506.1,1505.9,1.32897]
[1744299513880,0.00996612,1506.1,1505.9,13.308]
[1744299513881,1.33879612,1506.1,1505.9,13.308]
[1744299514086,1.33885612,1506.1,1505.9,13.308]
[1744299514277,1.3291,1505.8,1505.7,0.00996612]
[1744299514477,4.5369,1505.8,1505.7,0.00996612]
[1744299514680,13.68956612,1506.1,1505.7,13.31796612]
[1744299514878,3.21776612,1506.1,1505.9,13.308]
[1744299515084,0.00996612,1506.1,1506.0,13.308]
[1744299515279,0.00996612,1506.1,1506.0,17.84472]
[1744299515490,0.00996612,1506.1,1506.0,41.12096807]
[1744299515988,3.2078,1506.6,1506.3,1.32865]
[1744299516286,3.2078,1506.6,1506.5,13.308]
[1744299516682,10.4718,1507.0,1506.5,13.308]
[1744299516683,11.79989,1507.0,1506.5,13.308]
[1744299516983,1.32818,1506.9,1506.7,13.308]
[1744299517282,3.2078,1507.2,1506.9,13.308]
[1744299517483,13.0007,1507.4,1507.0,13.308]
[1744299517686,3.2078,1507.4,1507.2,13.308]
[1744299517888,0.00996612,1507.4,1507.1,101.398]
[1744299518075,0.00996612,1507.4,1507.2,13.308]
[1744299518276,0.00996612,1507.4,1507.3,13.308]
[1744299518586,0.00996612,1507.4,1507.3,14.63577]
[1744299518886,0.00996612,1507.4,1507.3,55.43577]
[1744299519089,0.00996612,1507.4,1507.3,60.43577]
[1744299519286,0.00996612,1507.4,1507.3,55.43577]
[1744299519684,3.21776612,1507.4,1507.3,55.43577]
[1744299519885,0.00996612,1507.4,1507.3,55.43577]
[1744299520084,0.00996612,1507.4,1507.3,69.06184899]
[1744299520382,0.00996612,1507.4,1507.3,54.108]
[1744299520782,3.2078,1507.9,1507.3,69.06184899]
[1744299520976,3.2078,1507.9,1507.8,14.63533]
[1744299521286,4.53504,1507.9,1507.8,114.645]
[1744299521483,3.2078,1507.9,1507.8,101.337]
[1744299521681,9.7037,1508.1,1507.8,115.97233]
[1744299521879,3.2078,1508.4,1508.0,13.308]
[1744299522079,9.7037,1508.7,1508.4,1.32677]
[1744299522280,12.9115,1508.7,1508.5,13.30799027]
[1744299522483,3.2078,1508.9,1508.1,3.31765]
[1744299522688,3.2078,1508.9,1508.6,13.30799027]
[1744299522884,3.2078,1509.2,1508.8,13.30799027]
[1744299523087,1.32663,1508.6,1508.0,3.9809]
[1744299523284,4.53463,1508.4,1507.9,10.4988]
[1744299523481,3.2078,1508.4,1508.2,13.30799027]
[1744299523683,3.2078,1508.4,1508.1,13.30799027]
[1744299523882,3.2078,1508.4,1508.2,13.30799027]
[1744299524082,3.2078,1508.4,1508.1,13.30799027]
[1744299524283,3.2078,1508.2,1508.0,0.00996612]
[1744299524487,3.2078,1508.4,1508.2,13.30799027]
[1744299524691,3.2078,1508.4,1508.3,115.92188027]
[1744299524998,3.2078,1508.4,1508.3,155.39499027]
[1744299525181,3.2078,1508.4,1508.3,142.087]
[1744299525387,19.11981,1508.4,1508.3,40.8]
[1744299525592,12.793,1508.4,1508.3,40.8]
[1744299526091,3.2078,1508.4,1508.3,40.8]
[1744299526293,4.53461,1508.4,1508.3,40.8]
[1744299526587,3.2078,1508.4,1508.3,40.8]
[1744299526786,4.53461,1508.4,1508.3,40.8]
[1744299527089,3.2078,1508.4,1508.3,55.43488027]
[1744299527490,3.2078,1508.4,1508.3,40.8]
[1744299527491,4.53461,1508.4,1508.3,40.8]
[1744299527687,3.2078,1508.4,1508.3,40.8]
[1744299527886,3.2078,1508.4,1508.0,0.00996612]
[1744299527887,1.32707,1508.1,1508.0,0.00996612]
[1744299528089,4.53487,1508.1,1508.0,0.00996612]
[1744299528288,3.31817,1507.9,1507.4,101.246]
[1744299528487,8.2078,1508.1,1507.4,101.246]
[1744299528488,4.5354,1507.5,1507.4,101.246]
[1744299528688,3.2078,1507.5,1506.9,3.32032]
[1744299528989,3.2078,1507.3,1507.2,1.32786]
[1744299529380,1.68946,1507.3,1507.2,14.63585027]
[1744299529691,0.00996612,1507.4,1507.3,1.32777]
[1744299529888,0.00996612,1507.4,1507.3,11.47337]
[1744299530091,0.00996612,1507.4,1507.1,0.00996612]
[1744299530092,8.21776612,1507.4,1507.1,0.00996612]
[1744299530288,3.2078,1507.2,1507.1,1.33791612]
[1744299530491,3.2078,1507.2,1507.1,0.00996612]
[1744299530789,8.2078,1507.2,1507.1,0.00996612]
[1744299530994,3.2078,1507.2,1507.1,14.64590639]
[1744299531185,6.12e-06,1507.4,1507.3,14.63576027]
[1744299531490,6.12e-06,1507.4,1507.3,1.32777]
[1744299531695,6.12e-06,1507.4,1507.3,22.84356027]
[1744299531892,3.2078,1508.0,1507.6,1.32751]
[1744299532098,10.0254,1508.2,1507.9,13.30799027]
[1744299532295,13.2332,1508.2,1508.1,14.63506027]
[1744299532490,3.2078,1508.2,1508.1,54.10799027]
[1744299532691,9.53478,1508.2,1508.1,40.8]
[1744299533394,1.32707,1508.1,1508.0,0.00996612]
[1744299533598,11.58137,1508.1,1508.0,0.00996612]
[1744299533789,10.2543,1508.1,1508.0,42.13712612]
[1744299533986,3.2078,1508.2,1508.0,40.80996612]
[1744299533987,4.5348,1508.2,1508.0,40.80996612]
[1744299534189,11.58137,1508.1,1508.0,40.80996612]
[1744299534390,3.2078,1508.2,1508.0,0.00996612]
[1744299534590,3.2078,1508.2,1508.1,1.32707]
[1744299534791,3.2078,1508.3,1508.2,1.32698]
[1744299534998,3.2078,1509.0,1508.2,3.2078]
[1744299535196,3.2078,1509.0,1508.9,1.3263]
[1744299535493,3.2078,1509.0,1508.8,14.63438027]
[1744299535694,8.2078,1509.0,1508.3,101.8652]
[1744299535898,0.6632,1509.7,1508.6,14.63459027]
[1744299535899,3.2078,1508.7,1508.6,14.63459027]
[1744299536089,3.2078,1508.9,1508.5,10.0914]
[1744299536288,3.2078,1509.1,1508.6,3.31644]
[1744299536487,3.2078,1509.1,1509.0,1.32628]
[1744299536689,1.3263,1509.0,1508.7,14.6226038]
[1744299536894,3.2078,1508.9,1508.7,13.2961138]
[1744299537201,3.2078,1508.9,1508.5,0.00996612]
[1744299537202,1.32663,1508.6,1508.5,0.00996612]
[1744299537401,3.2078,1508.6,1507.7,111.2634]
[1744299537601,3.2078,1508.3,1508.2,1.32692]
[1744299537801,3.2078,1508.3,1508.0,13.2961138]
[1744299538107,3.2078,1508.1,1507.8,1.32732]
[1744299538399,1.32741,1507.8,1507.3,0.6632]
[1744299538605,4.53507,1507.9,1507.7,13.2961138]
[1744299538797,4.53507,1507.9,1507.8,0.00996612]
[1744299538992,9.53507,1507.9,1507.8,6.12e-06]
[1744299539496,8.79873064,1507.9,1507.2,40.8]
[1744299539797,3.2078,1507.5,1507.4,1.32769]
[1744299540302,3.2078,1507.5,1507.3,1.32777]
[1744299540603,1.32769,1507.4,1507.3,0.00996612]
[1744299540903,1.32793,1507.2,1506.8,1.32816]
[1744299541111,3.2078,1507.5,1506.6,13.1303]
[1744299541296,3.2078,1507.5,1507.4,13.2961138]
[1744299541600,3.2078,1507.9,1507.4,117.8001238]
[1744299541797,3.2078,1507.7,1507.5,22.4166138]
[1744299541999,3.2078,1508.0,1507.8,13.2961138]
[1744299542197,3.2078,1508.0,1507.9,14.6233538]
[1744299542509,0.00996612,1508.1,1508.0,1.32716]
[1744299542697,0.00996612,1508.1,1507.9,1.32718]
[1744299542900,0.00996612,1508.1,1508.0,14.6232738]
[1744299543108,0.60594325,1508.1,1507.8,13.2961138]
[1744299543402,3.2078,1507.9,1507.8,1.32733]
[1744299543708,3.21776612,1508.1,1508.0,14.6232738]
[1744299543906,0.00996612,1508.1,1508.0,13.2961138]
[1744299544105,0.00996612,1508.1,1508.0,14.6232738]
[1744299544306,0.60785362,1508.1,1508.0,54.0961138]
[1744299544515,4.26392949,1508.1,1508.0,40.8]
[1744299544717,1.32718,1508.0,1507.5,0.00996612]
[1744299544908,3.8056875,1507.9,1507.8,1.32725]
[1744299545215,0.00996612,1508.1,1508.0,14.6232738]
[1744299545417,0.60914198,1508.1,1508.0,14.6232738]
[1744299545619,2.38554574,1508.1,1507.9,1.32718]
[1744299545819,0.59917586,1508.0,1507.9,1.32724]
[1744299546113,1.04891506,1508.0,1507.7,9.9327]
[1744299546318,4.53517,1507.8,1507.5,0.00996612]
[1744299546519,1.32751,1507.6,1507.5,0.00996612]
[1744299546720,0.59917586,1507.6,1507.5,14.63367992]
[1744299546917,2.37626669,1507.6,1507.5,0.00996612]
[1744299547218,0.59917586,1507.6,1507.5,19.63367992]
[1744299547512,3.2078,1507.8,1507.7,1.32742]
[1744299547713,3.2078,1507.8,1507.7,14.6235338]
[1744299547916,0.44992538,1507.8,1507.5,9.94266612]
[1744299548118,3.2078,1508.0,1507.7,13.2961138]
[1744299548320,3.2078,1508.0,1507.8,13.2961138]
[1744299548516,1.77725786,1507.9,1507.7,1.32739]
[1744299548717,1.32724,1507.9,1507.7,14.6234638]
[1744299548912,1.32751,1507.6,1507.5,0.00996612]
[1744299549125,4.985163,1507.6,1507.5,0.00996612]
[1744299549321,9.985163,1507.6,1507.5,0.00996612]
[1744299549715,4.18637066,1507.6,1507.5,14.63367992]
[1744299549920,0.52871766,1507.6,1507.5,14.63367992]
[1744299550119,3.2078,1507.8,1507.7,1.32742]
[1744299550315,1.32747,1507.7,1507.6,13.2961138]
[1744299550628,1.32742,1507.7,1507.6,42.12746]
[1744299550914,1.32751,1507.6,1507.5,0.00996612]
[1744299551117,4.98471358,1507.6,1507.5,0.00996612]
[1744299551322,3.65720358,1507.6,1507.5,14.63367992]
[1744299551517,3.2078,1507.6,1507.5,14.63367992]
[1744299551717,1.32724,1507.9,1507.8,1.32733]
[1744299551921,0.44933019,1507.9,1507.7,13.2961138]
[1744299552117,3.2078,1508.0,1507.9,1.32724]
[1744299552423,3.2078,1507.8,1507.5,0.00996612]
[1744299552621,4.53531,1507.6,1507.5,6.12e-06]
[1744299552919,1.32827,1506.8,1506.6,9.8439]
[1744299553122,3.2078,1506.8,1506.4,1.32855]
[1744299553320,1.32857,1506.4,1506.3,9.8439]
[1744299553621,1.32883,1506.1,1506.0,114.4821138]
[1744299553831,1.32883,1506.1,1506.0,101.186]
[1744299554029,4.54657612,1506.2,1506.0,101.186]
[1744299554323,1.32883,1506.1,1506.0,101.186]
[1744299554521,1.32892,1506.0,1505.9,6.12e-06]
[1744299554717,1.32963,1505.2,1505.1,9.2145]
[1744299554927,3.2078,1505.3,1505.2,13.2961138]
[1744299555322,1.32971,1505.1,1505.0,111.37830896]
[1744299555524,4.53751,1505.1,1505.0,10.19230896]
[1744299556921,0.00996612,1505.2,1505.0,28.48842276]
[1744299557123,0.00996612,1505.2,1505.1,14.6258238]
[1744299557325,0.00996612,1505.2,1505.1,24.2954238]
[1744299557519,1.33959612,1505.2,1505.1,13.2961138]
[1744299557719,0.00996612,1505.2,1505.1,13.2961138]
[1744299557926,0.00996612,1505.2,1505.1,22.8336238]
[1744299558128,0.00996612,1505.2,1505.1,29.2954238]
[1744299558426,0.00996612,1505.2,1505.1,22.9657138]
[1744299558620,1.33959612,1505.2,1505.1,13.2961138]
[1744299558816,1.32971,1505.1,1505.0,10.19230896]
[1744299559020,1.32971,1505.1,1504.9,0.00996612]
[1744299559021,1.3298,1505.0,1504.9,0.00996612]
[1744299559334,1.33016,1504.6,1504.5,40.8]
[1744299559526,3.2078,1504.6,1504.1,1.33057]
[1744299559827,3.2078,1504.4,1503.6,3.2078]
[1744299560029,9.9633,1504.3,1503.8,13.2961138]
[1744299560328,1.33069,1504.0,1503.9,13.2961138]
[1744299560530,3.21776612,1504.2,1503.9,0.00664404]
[1744299560929,9.9633,1504.1,1504.0,13.2961138]
[1744299561226,0.00996612,1504.2,1504.1,14.6267138]
[1744299561422,9.9633,1504.6,1504.1,17.8345138]
[1744299561622,3.2078,1504.8,1504.4,13.2961138]
[1744299561824,9.9633,1504.7,1504.5,13.2961138]
[1744299562027,9.9633,1504.7,1504.4,3.2078]
[1744299562234,9.9633,1504.7,1504.6,13.2961138]
[1744299562433,3.2078,1504.9,1504.6,13.2961138]
[1744299562735,3.2078,1505.1,1504.8,13.2961138]
[1744299562932,1.33007,1504.7,1504.6,13.2961138]
[1744299563237,1.33004,1504.8,1504.7,13.2961138]
[1744299563738,0.00996612,1504.9,1504.8,1.32998]
[1744299563931,0.00996612,1504.9,1504.8,22.4902138]
[1744299564130,0.00996612,1504.9,1504.8,32.0279938]
[1744299564335,0.66480001,1505.9,1504.9,3.32473]
[1744299564336,6.53058,1505.8,1504.9,3.32473]
[1744299564636,1.32954,1505.3,1505.2,13.2961138]
[1744299564820,4.53734,1505.3,1505.2,13.2961138]
[1744299565026,4.53734,1505.3,1505.0,40.8]
[1744299565027,1.32969,1505.2,1505.0,40.8]
[1744299565229,3.2078,1505.3,1505.0,40.8]
[1744299565230,1.32971,1505.1,1505.0,40.8]
[1744299565424,1.33955612,1505.3,1505.2,13.2961138]
[1744299565633,1.33950612,1505.3,1505.2,13.2961138]